Workbook

Sheet 直通车预算及跟踪
A1: 项目解释 | B1: 销量固定 | D1: ROI固定 | F1: 费用固定 | I1: 第一周 | Q1: 第二周 | Y1: 第三周 | AG1: 第四周
B2: 目标销量 | C2: 宝贝一 | D2: 参数 | E2: 宝贝一 | F2: 参数 | G2: 宝贝一 | J2: 2013-08-01 | K2: 2013-08-02 | L2: 2013-08-03 | M2: 2013-08-04 | N2: 2013-08-05 | O2: 2013-08-06 | P2: 2013-08-07 | R2: 2013-08-08 | S2: 2013-08-09 | T2: 2013-08-10 | U2: 2013-08-11 | V2: 2013-08-12 | W2: 2013-08-13 | X2: 2013-08-14 | Z2: 2013-08-15 | AA2: 2013-08-16 | AB2: 2013-08-17 | AC2: 2013-08-18 | AD2: 2013-08-19 | AE2: 2013-08-20 | AF2: 2013-08-21 | AH2: 2013-08-21 | AI2: 2013-08-22 | AJ2: 2013-08-23 | AK2: 2013-08-24 | AL2: 2013-08-25 | AM2: 2013-08-26 | AN2: 2013-08-27
B3: 直通车客单价（元） | C3: 58 | D3: 直通车客单价（元） | E3: 58 | F3: 直通车客单价（元） | G3: 58 | I3: 需要成交量 | Q3: 需要成交量 | Y3: 需要成交量 | AG3: 需要成交量
B4: 产品成本（元） | C4: 30 | D4: 产品成本（元） | E4: 30 | F4: 产品成本（元） | G4: 30 | I4: 昨日成交量 | Q4: 昨日成交量 | Y4: 昨日成交量 | AG4: 昨日成交量
A5: 去掉邮费礼物杂费 | B5: 产品利润率/纯 | C5: =(C3-C4-7.5-1.5)/C3 -> 0.3275862069 | D5: 产品利润率 | E5: =(E3-E4-7.5-1.5)/E3 -> 0.3275862069 | F5: 产品利润率 | G5: =(G3-G4-7.5-1.5)/G3 -> 0.3275862069 | I5: 点击费用PPC | Q5: 点击费用PPC | Y5: 点击费用PPC | AG5: 点击费用PPC
B6: 每流量费用PPC（元） | C6: 1.28 | D6: 每流量费用PPC（元） | E6: 1.28 | F6: 每流量费用PPC（元） | G6: 1.28 | I6: 直通车日花费 | Q6: 直通车日花费 | Y6: 直通车日花费 | AG6: 直通车日花费
B7: 市场转化率（魔方） | C7: 0.0288 | D7: 市场转化率（魔方） | E7: 0.0288 | F7: 市场转化率（魔方） | G7: 0.0288 | I7: 直通成交金额 | Q7: 直通成交金额 | Y7: 直通成交金额 | AG7: 直通成交金额
A8: 首选参考 | B8: 直通车转化率 | C8: 0.025 | D8: 直通车转化率 | E8: 0.0458 | F8: 直通车转化率 | G8: 0.0258 | I8: 当日成交转化率 | Q8: 当日成交转化率 | Y8: 当日成交转化率 | AG8: 当日成交转化率
B9: 总销量笔数 | C9: 1600 | D9: 总销量笔数 | E9: 1600 | F9: 总销量笔数 | G9: =G8*G16/G6 -> 907.03125 | I9: 当日直通车收藏 | Q9: 当日直通车收藏 | Y9: 当日直通车收藏 | AG9: 当日直通车收藏
B10: 推广周期（天） | C10: 30 | D10: 运作周期（天） | E10: 30 | F10: 运作周期（天） | G10: 30 | I10: 主图点击率/% | Q10: 主图点击率/% | Y10: 主图点击率/% | AG10: 主图点击率/%
B11: 需要流量UV | C11: =C9/C8 -> 64000 | D11: 总共获取流量UV | E11: =E9/E8 -> 34934.49782 | F11: 总共获取流量UV | G11: =G9/G8 -> 35156.25
B12: 日均流量UV | C12: =C11/30 -> 2133.333333 | D12: 日均流量UV | E12: =E11*30 -> 1048034.934 | F12: 日均流量UV | G12: =G11/30 -> 1171.875
B13: 日均车费（元） | C13: =C12*C6 -> 2730.666667 | D13: 日均车费（元） | E13: =E12*E6 -> 1341484.716 | F13: 日均车费（元） | G13: =G16/30 -> 1500
B14: 日均销量 | C14: =C9/30 -> 53.33333333 | D14: 日均销量 | E14: =E9/30 -> 53.33333333 | F14: 日均销量 | G14: =G9/30 -> 30.234375 | I14: 汇总 | J14: 2013-08-01 | K14: 2013-08-02 | L14: 2013-08-03 | M14: 2013-08-04 | N14: 2013-08-05 | O14: 2013-08-06 | P14: 2013-08-07 | Q14: 2013-08-08 | R14: 2013-08-09 | S14: 2013-08-10 | T14: 2013-08-11 | U14: 2013-08-12 | V14: 2013-08-13 | W14: 2013-08-14 | X14: 2013-08-15 | Y14: 2013-08-16 | Z14: 2013-08-17 | AA14: 2013-08-18 | AB14: 2013-08-19 | AC14: 2013-08-20 | AD14: 2013-08-21 | AE14: 2013-08-22 | AF14: 2013-08-23 | AG14: 2013-08-24 | AH14: 2013-08-25 | AI14: 2013-08-26 | AJ14: 2013-08-27 | AK14: 2013-08-28 | AL14: 2013-08-29 | AM14: 2013-08-30 | AN14: 2013-08-31
B15: 转化成本（订单成本） | C15: =C6/C7 -> 44.44444444 | D15: 转化成本（订单成本） | E15: =E6/E7 -> 44.44444444 | F15: 转化成本（订单成本） | G15: =G6/G8 -> 49.6124031 | I15: 需要成交量
B16: 直通车推广投入（元） | C16: =C11*C6 -> 81920 | D16: 直通车推广投入（元） | E16: =E11*E6 -> 44716.15721 | F16: 直通车推广投入（元） | G16: 45000 | I16: 昨日成交量
B17: 总投入（元） | C17: =C4*C9+C16 -> 129920 | D17: 总投入（元） | E17: =E4*E9+E16 -> 92716.15721 | F17: 总投入（元） | G17: =G4*G9+G16 -> 72210.9375 | I17: 点击费用PPC
B18: 总销量（元） | C18: =C3*C9 -> 92800 | D18: 总销量（元） | E18: =E3*E9 -> 92800 | F18: 总销量（元） | G18: =G3*G9 -> 52607.8125 | I18: 直通车日花费
B19: 毛利润（元） | C19: =C3*C5*C9 -> 30400 | D19: 毛利润（元） | E19: =E3*E5*E9 -> 30400 | F19: 毛利润（元） | G19: =G3*G5*G9 -> 17233.59375 | I19: 直通成交金额
B20: 纯利润（元） | C20: =C18-C4*C9-C16 -> -37120 | D20: 纯利润（元） | E20: =E18-C4*E9-E16 -> 83.84279476 | F20: 纯利润（元） | G20: =G18-G4*G9-G16 -> -19603.125 | I20: 当日成交转化率
B21: 投入产出比ROI | C21: =C18/C16 -> 1.1328125 | D21: 投入产出比ROI | E21: =E18/E16 -> 2.0753125 | F21: 投入产出比ROI | G21: =G18/G16 -> 1.1690625 | I21: 当日直通车收藏
A22: 流量价值=利润/流量 | B22: 流量价值（元） | C22: =C6/C8 -> 51.2 | D22: 流量价值 | E22: =E6/E8 -> 27.94759825 | F22: 流量价值 | G22: =G6/G8 -> 49.6124031 | I22: 主图点击率/%
A24: 黄色背景部分预先填入，即可得到下面的所有数据 未考虑的情况：1、直通车带来的关联销售、二次销售、购买多件 包括自然流量成交。 | I24: 以上均可根据自己每日需求进行一份拟定 调整整条直通车策略 包括自己的玩法 做好每一步细节 能够更清晰的看清现在直通车处境状况
